bitfinex/quotes_SOLUSD_20250129
["timestamp","ask_amount","ask_price","bid_price","bid_amount"]
[1738137622384,0.03,234.72,234.69,20.0]
[1738137622677,0.03,234.72,234.71,20.0]
[1738137623862,0.03,234.72,234.71,24.2605]
[1738137624667,0.03,234.72,234.69,4.2608]
[1738137626387,0.03,234.72,234.71,20.0]
[1738137627160,0.03,234.72,234.71,73.776884]
[1738137627695,0.03,234.73,234.72,23.776884]
[1738137627996,0.03,234.73,234.72,29.676384]
[1738137628670,0.03,234.73,234.72,5.8995]
[1738137629370,0.03,234.73,234.72,4.2603]
[1738137629565,0.03,234.73,234.69,2.84]
[1738137629766,0.03,234.73,234.67,4.2612]
[1738137630078,0.03,234.73,234.63,2.84]
[1738137630280,0.03,234.73,234.65,20.0]
[1738137631069,0.03,234.73,234.66,20.0]
[1738137631264,0.03,234.73,234.64,4.2618]
[1738137631478,0.03,234.73,234.64,44.9164]
[1738137631669,0.03,234.73,234.67,20.0]
[1738137631884,0.03,234.73,234.68,30.0]
[1738137632195,0.03,234.73,234.67,20.0]
[1738137633576,0.03,234.73,234.67,24.2612]
[1738137634905,0.03,234.73,234.65,4.2615]
[1738137635089,0.03,234.73,234.61,4.2623]
[1738137635284,0.03,234.73,234.64,20.0]
[1738137635609,0.03,234.73,234.62,2.84]
[1738137635906,0.03,234.73,234.61,4.2623]
[1738137636111,0.12549,234.71,234.61,4.2623]
[1738137636317,23.902374,234.71,234.59,4.2626]
[1738137636814,23.902374,234.71,234.59,24.2626]
[1738137636981,0.12549,234.71,234.59,24.2626]
[1738137637184,1.2782,234.7,234.57,4.2631]
[1738137637385,0.12549,234.69,234.57,4.2631]
[1738137637998,0.12549,234.69,234.59,20.0]
[1738137638196,0.12549,234.69,234.57,4.2631]
[1738137638495,0.12549,234.71,234.57,4.2631]
[1738137638884,0.12549,234.71,234.59,20.0]
[1738137639810,0.12549,234.71,234.6,4.2625]
[1738137640011,0.12549,234.71,234.6,14.9189]
[1738137640683,1.5883,234.72,234.62,20.0]
[1738137640898,0.03,234.73,234.66,20.0]
[1738137641787,0.03,234.73,234.67,4.2613]
[1738137645314,0.03,234.73,234.69,4.2609]
[1738137647420,0.03,234.73,234.67,0.063]
[1738137649906,1.308,234.73,234.67,0.063]
[1738137650322,0.12549,234.72,234.67,0.063]
[1738137650823,0.15549,234.73,234.67,0.063]
[1738137651116,24.932374,234.73,234.67,0.063]
[1738137651908,31.824574,234.69,234.67,0.063]
[1738137652918,32.824574,234.69,234.67,0.063]
[1738137653518,25.180674,234.68,234.67,0.063]
[1738137653721,25.180674,234.68,234.51,4.2642]
[1738137653722,20.12549,234.64,234.51,4.2642]
[1738137653921,0.12549,234.62,234.51,4.2642]
[1738137655107,1.40419,234.62,234.51,4.2642]
[1738137655806,1.2785,234.65,234.51,4.2642]
[1738137656009,1.2785,234.65,234.53,20.0]
[1738137657140,0.12549,234.64,234.54,4.2636]
[1738137659709,1.2784,234.67,234.54,4.2636]
[1738137659910,20.0,234.66,234.54,4.2636]
[1738137660325,9.2005,234.69,234.54,14.9227]
[1738137660920,0.12549,234.68,234.54,14.9227]
[1738137661620,0.12549,234.68,234.57,14.9207]
[1738137661823,0.12549,234.69,234.57,14.9207]
[1738137663326,23.902374,234.69,234.57,4.2631]
[1738137663526,0.12549,234.65,234.55,4.2634]
[1738137664041,21.2784,234.66,234.52,4.264]
[1738137664042,0.12549,234.63,234.52,4.264]
[1738137665041,0.12549,234.61,234.52,4.264]
[1738137668839,85.3668,234.64,234.52,4.264]
[1738137669533,0.12549,234.63,234.52,4.264]
[1738137669752,84.0231,234.71,234.55,20.0]
[1738137669923,1.5231,234.71,234.55,50.0]
[1738137670124,1.5231,234.71,234.58,30.0]
[1738137670318,1.308,234.73,234.58,30.0]
[1738137670538,0.03,234.69,234.61,30.0]
[1738137670839,0.03,234.69,234.62,0.12549]
[1738137671042,0.03,234.69,234.62,4.38769]
[1738137673725,0.03,234.69,234.6,4.38789]
[1738137674346,0.12549,234.67,234.59,0.12549]
[1738137674644,0.12549,234.65,234.52,0.063]
[1738137674823,0.12549,234.65,234.54,0.12549]
[1738137675032,20.0,234.63,234.54,0.12549]
[1738137675748,1.40409,234.62,234.52,4.3269]
[1738137679143,1.40409,234.62,234.52,0.063]
[1738137679543,1.40409,234.62,234.52,0.18849]
[1738137680025,20.0,234.59,234.52,0.18849]
[1738137680225,0.12549,234.58,234.52,0.18849]
[1738137680549,0.12549,234.56,234.52,0.063]
[1738137683749,25.181174,234.58,234.52,0.063]
[1738137684153,0.12549,234.58,234.52,0.063]
[1738137684451,1.2786,234.63,234.52,0.063]
[1738137686351,1.2787,234.6,234.52,4.45239]
[1738137686557,83.7787,234.62,234.52,4.45239]
[1738137686852,82.5,234.62,234.52,4.45239]
[1738137687062,0.12549,234.61,234.52,4.45239]
[1738137691938,1.2786,234.64,234.54,0.12549]
[1738137692652,0.12549,234.63,234.52,4.3269]
[1738137692862,0.12549,234.61,234.52,4.3269]
[1738137693044,23.902374,234.61,234.52,0.063]
[1738137693845,0.12549,234.61,234.52,0.063]
[1738137694046,0.12549,234.61,234.53,0.12549]
[1738137695443,1.2787,234.6,234.53,0.12549]
[1738137696745,1.2787,234.6,234.54,0.063]
[1738137697962,20.0,234.61,234.54,4.3266]
[1738137698260,20.0,234.61,234.55,0.12549]
[1738137699467,0.12549,234.6,234.55,0.12549]
[1738137701164,1.2786,234.62,234.54,0.063]
[1738137701367,1.2786,234.63,234.56,0.12549]
[1738137702152,0.03,234.67,234.56,81.89738284]
[1738137703458,0.03,234.67,234.58,0.12549]
[1738137704865,0.03,234.67,234.57,0.12549]
[1738137705068,0.03,234.67,234.57,4.38859]
[1738137705855,0.03,234.67,234.57,0.12549]
[1738137708268,1.40389,234.66,234.57,0.12549]
[1738137708849,10.47641496,234.58,234.54,0.063]
[1738137709061,10.47641496,234.55,234.54,0.063]
[1738137710251,11.88060496,234.6,234.55,0.12549]
[1738137710252,10.47641496,234.56,234.55,0.12549]
[1738137710573,10.47641496,234.58,234.55,0.12549]
[1738137711284,10.47641496,234.57,234.55,0.12549]
[1738137712455,10.47641496,234.59,234.56,0.12549]
[1738137714086,10.47641496,234.58,234.56,0.12549]
[1738137719703,10.47641496,234.59,234.56,0.12549]
[1738137720707,6.7049429,234.59,234.56,0.12549]
[1738137721587,6.7049429,234.57,234.56,0.063]
[1738137726064,6.7049429,234.58,234.56,0.063]
[1738137726887,6.7049429,234.57,234.56,0.063]
[1738137727087,6.7049429,234.61,234.56,0.063]
[1738137727393,6.7049429,234.66,234.59,0.12549]
[1738137727570,0.03,234.67,234.62,0.12549]
[1738137727764,0.03,234.67,234.64,0.12549]
[1738137728192,6.7049429,234.66,234.64,0.12549]
[1738137728361,6.7349429,234.67,234.64,0.12549]
[1738137728567,0.03,234.67,234.64,0.12549]
[1738137729261,0.03,234.67,234.64,6.8304329]
[1738137729456,0.03,234.67,234.66,0.12549]
[1738137729890,0.03,234.67,234.66,4.38689]
[1738137731488,0.03,234.67,234.66,14.85177789]
[1738137731691,0.03,234.67,234.66,44.85177789]
[1738137732582,0.03,234.67,234.66,14.85177789]
[1738137733187,0.03,234.67,234.66,38.62866189]
[1738137735790,0.03,234.67,234.66,68.62866189]
[1738137735975,0.03,234.69,234.68,0.25098]
[1738137736168,0.03,234.69,234.68,41.01095189]
[1738137737300,0.03,234.73,234.72,0.12549]
[1738137737507,0.03,234.73,234.72,34.36726189]
[1738137738408,0.03,234.73,234.72,38.62756189]
[1738137740981,0.03,234.73,234.72,38.75305189]
[1738137742504,0.03,234.73,234.72,38.62756189]
[1738137742800,0.03,234.73,234.72,28.162674]
[1738137743707,0.03,234.73,234.72,38.62756189]
[1738137744105,10.49488789,234.8,234.75,20.0]
[1738137744294,0.03,234.8,234.79,43.902374]
[1738137744686,0.03,234.8,234.79,23.902374]
[1738137746601,0.03,234.8,234.79,28.161474]
[1738137747207,0.03,234.8,234.79,23.902374]
[1738137749314,0.03,234.8,234.79,28.161474]
[1738137749518,0.03,234.8,234.79,38.62636189]
[1738137750685,0.03,234.8,234.79,34.85088073]
[1738137753897,0.03,234.8,234.79,34.97637073]
[1738137754092,0.03,234.81,234.8,54.027864]
[1738137754434,0.03,234.84,234.83,75.027864]
[1738137754587,0.0001,234.84,234.83,112.86239765]
[1738137754916,0.0001,234.84,234.83,123.41939765]
[1738137755294,0.03,234.91,234.89,54.027864]
[1738137755602,0.03,234.91,234.89,60.71727073]
[1738137757210,0.03,234.91,234.89,64.97457073]
[1738137758509,0.03,234.91,234.89,0.12549]
[1738137759794,6.71940673,234.91,234.89,23.902374]
[1738137760209,0.03,234.91,234.89,0.12549]
[1738137760406,0.03,234.91,234.89,23.902374]
[1738137760917,0.03,234.91,234.89,30.59178073]
[1738137761107,0.03,234.91,234.89,60.71727073]
[1738137762502,0.03,234.91,234.89,64.47015942]
[1738137763220,0.03,234.91,234.9,24.027864]
[1738137763413,0.03,234.91,234.9,38.72725942]
[1738137764719,0.03,234.91,234.9,175.12725942]
[1738137767733,0.03,234.97,234.96,23.902374]
[1738137770440,0.03,234.97,234.96,64.47015942]
[1738137770723,0.03,234.97,234.96,68.72615942]
[1738137772498,10.44229542,235.08,235.03,20.0]
[1738137772704,10.44229542,235.08,235.05,23.776884]
[1738137773607,10.44229542,235.07,235.03,0.12549]
[1738137773810,10.44229542,235.07,235.02,0.12549]
[1738137774012,9.94229542,235.07,235.02,0.12549]
[1738137774424,10.44229542,235.05,235.02,20.0]
[1738137774621,10.44229542,235.05,235.03,23.902374]
[1738137774801,1.2762,235.07,235.03,0.12549]
[1738137774802,10.44229542,235.04,235.03,0.12549]
[1738137775419,10.44229542,235.04,234.97,23.902374]
[1738137775624,10.44229542,235.03,235.01,23.902374]
[1738137776628,10.44229542,235.02,234.94,10.44229542]
[1738137776816,10.44229542,235.0,234.94,2.82]
[1738137777021,10.44229542,235.01,234.99,23.902374]
[1738137777918,10.44229542,235.02,234.99,23.902374]
[1738137778235,10.44229542,235.01,234.99,23.902374]
[1738137779117,10.44229542,235.0,234.99,23.902374]
[1738137780527,10.44229542,235.01,234.99,23.902374]
[1738137780928,10.44229542,235.0,234.94,2.82]
[1738137781130,10.44229542,234.99,234.94,2.82]
[1738137781319,10.44229542,234.99,234.97,23.902374]
[1738137781519,10.44229542,235.0,234.97,23.902374]
[1738137781716,10.47229542,235.01,234.97,23.902374]
[1738137782613,6.71203035,235.01,234.97,23.902374]
[1738137783030,6.68203035,235.0,234.97,23.902374]
[1738137785616,0.03,235.01,234.97,23.902374]
[1738137788030,6.68203035,234.98,234.9,0.063]
[1738137788222,6.68203035,234.91,234.9,0.063]
[1738137788611,6.68203035,234.93,234.9,0.063]
[1738137789218,6.68203035,234.94,234.9,0.063]
[1738137789934,6.68203035,234.95,234.91,0.12549]
[1738137790438,6.68203035,234.95,234.9,0.18849]
[1738137790639,6.68203035,234.93,234.9,0.18849]
[1738137791246,6.68203035,234.93,234.9,0.063]
[1738137792440,7.95893035,234.93,234.9,0.063]
[1738137793439,7.95893035,234.93,234.91,0.063]
[1738137793815,6.68203035,234.92,234.91,0.063]
[1738137794337,6.68203035,234.94,234.91,0.063]
[1738137796048,1.2768,234.96,234.91,0.063]
[1738137796049,6.68203035,234.96,234.92,0.12549]
[1738137796340,6.68203035,235.0,234.94,23.902374]
[1738137797641,7.95853035,235.0,234.94,23.902374]
[1738137797837,7.95853035,235.0,234.93,6.68203035]
[1738137797838,6.68203035,234.99,234.93,0.12549]
[1738137798225,6.68203035,234.96,234.93,0.12549]
[1738137798543,6.68203035,234.96,234.91,0.063]
[1738137799818,6.68203035,234.94,234.91,0.063]
[1738137800736,6.68203035,234.94,234.91,0.18849]
[1738137802021,6.68203035,234.95,234.91,0.18849]
[1738137803438,6.68203035,234.94,234.91,0.18849]
[1738137803643,6.68203035,234.92,234.91,0.18849]
[1738137805130,7.95903035,234.93,234.91,0.18849]
[1738137808250,7.95903035,234.93,234.91,0.063]
[1738137808438,6.68203035,234.92,234.91,0.063]
[1738137808645,7.95903035,234.92,234.91,0.063]
[1738137811360,7.95873035,234.97,234.91,0.18849]
[1738137811563,7.95873035,234.98,234.91,23.965374]
[1738137812056,7.95863035,235.0,234.93,0.12549]
[1738137812250,7.95863035,235.0,234.94,23.902374]
[1738137812637,11.7182264,235.0,234.94,23.902374]
[1738137815344,11.7182264,235.0,234.93,0.12549]
[1738137816858,10.4416264,234.99,234.93,0.12549]
[1738137817154,10.4416264,234.98,234.93,0.12549]
[1738137818436,10.4416264,234.98,234.93,0.18849]
[1738137818835,10.4416264,234.98,234.93,0.063]
[1738137818836,10.4416264,234.94,234.93,0.063]
[1738137820755,10.4416264,234.96,234.93,0.063]
[1738137821758,10.4416264,234.97,234.93,0.063]
[1738137822763,11.7183264,234.97,234.93,0.063]
[1738137824949,11.7182264,235.0,234.93,0.063]
[1738137825267,0.03,235.01,234.94,34.3440004]
[1738137825268,11.7481264,235.01,234.94,34.3440004]
[1738137825570,11.7481264,235.01,234.96,0.12549]
[1738137826359,11.7481264,235.01,234.94,24.027864]
[1738137826659,10.4416264,235.0,234.94,24.027864]
[1738137827551,11.7481264,235.01,234.94,10.5671164]
[1738137827866,11.7481264,235.01,234.94,34.3440004]
[1738137828040,11.7481264,235.01,234.96,0.12549]
[1738137828539,0.03,235.01,234.95,34.4694904]
[1738137828938,0.03,235.01,234.98,23.902374]
[1738137829162,0.03,235.01,235.0,23.776884]
[1738137830168,0.03,235.01,234.99,23.776884]
[1738137830868,0.03,235.01,234.98,24.027864]
[1738137831042,0.03,235.01,234.98,28.283464]
[1738137831561,0.03,235.01,234.99,10.4416264]
[1738137833577,0.03,235.01,234.98,28.283464]
[1738137833769,0.03,235.01,234.97,24.027864]
[1738137834071,0.03,235.01,234.97,28.283664]
[1738137834863,0.03,235.01,234.97,34.96420474]
[1738137835275,0.03,235.01,234.99,24.027864]
[1738137835460,0.03,235.01,234.99,30.70840474]
[1738137836570,0.03,235.01,234.99,34.96380474]
[1738137836767,0.03,235.01,235.0,6.80603074]
[1738137837064,0.03,235.01,235.0,0.12549]
[1738137838670,0.03,235.01,235.0,0.25098]
[1738137838874,0.03,235.01,235.0,64.96370474]
[1738137845773,0.03,235.01,235.0,0.12549]
[1738137846358,0.03,235.01,235.0,24.027864]
[1738137846582,0.03,235.01,235.0,0.12549]
[1738137853095,0.03,235.07,235.06,30.0]
[1738137853385,0.03,235.14,235.13,30.70840474]
[1738137854480,0.03,235.14,235.13,34.96130474]
[1738137854667,0.03,235.14,235.13,38.70289511]
[1738137856288,0.03,235.21,235.13,152.66373111]
[1738137856483,0.03,235.21,235.16,10.42213111]
[1738137856689,0.03,235.21,235.17,24.027864]
[1738137857187,10.45213111,235.21,235.12,10.42213111]
[1738137857391,10.45213111,235.21,235.12,30.42213111]
[1738137857591,10.42213111,235.19,235.1,10.42213111]
[1738137857800,10.42213111,235.19,235.11,24.027864]
[1738137857978,10.42213111,235.17,235.11,24.027864]
[1738137858174,10.42213111,235.17,235.11,0.12549]
[1738137858381,10.42213111,235.17,235.08,10.42213111]
[1738137858875,10.42213111,235.17,235.09,0.25098]
[1738137859397,10.45213111,235.21,235.14,10.42213111]
[1738137859699,0.03,235.21,235.17,23.776884]
[1738137860298,1.3054,235.21,235.17,23.776884]
[1738137860978,0.03,235.21,235.18,10.54762111]
[1738137861180,0.03,235.21,235.2,0.12549]
[1738137864101,0.03,235.21,235.2,34.44999511]
[1738137865302,0.03,235.21,235.2,64.44999511]
[1738137865599,0.03,235.31,235.3,0.25098]
[1738137865797,0.03,235.31,235.3,34.44999511]
[1738137866187,0.1,235.42,235.37,30.0]
[1738137866383,0.1,235.42,235.4,10.42213111]
[1738137866585,13.52362779,235.47,235.38,10.42213111]
[1738137866797,10.42213111,235.45,235.38,10.42213111]
[1738137866993,17.11952779,235.47,235.38,10.42213111]
[1738137867799,10.42213111,235.45,235.39,23.902374]
[1738137868002,10.42213111,235.45,235.39,0.12549]
[1738137868625,1.2741,235.46,235.41,10.42213111]
[1738137868797,1.2741,235.46,235.39,24.027864]
[1738137868798,6.69739668,235.47,235.45,10.42213111]
[1738137868998,6.69739668,235.47,235.46,24.027864]
[1738137869591,6.69739668,235.47,235.46,23.902374]
[1738137870202,6.69739668,235.47,235.46,23.776884]
[1738137870506,1.2736,235.54,235.46,23.776884]
[1738137870809,1.2736,235.54,235.47,10.42213111]
[1738137871408,1.2736,235.54,235.37,4.2485]
[1738137871409,10.42213111,235.49,235.41,10.42213111]
[1738137871783,10.42213111,235.47,235.39,10.42213111]
[1738137872381,4.4577,235.54,235.42,10.42213111]
[1738137872382,10.42213111,235.5,235.42,10.42213111]
[1738137872582,10.42213111,235.52,235.44,10.42213111]
[1738137872802,1.2738,235.51,235.45,23.776884]
[1738137873102,1.2738,235.51,235.44,10.42213111]
[1738137873616,1.2738,235.51,235.47,23.776884]
[1738137874692,1.2738,235.51,235.45,23.902374]
[1738137875089,1.2738,235.51,235.45,23.776884]
[1738137876312,11.69563111,235.56,235.49,23.776884]
[1738137877311,6.0027,235.63,235.51,23.776884]
[1738137877517,3.1827,235.65,235.57,10.42213111]
[1738137877812,11.69513111,235.66,235.57,10.42213111]
[1738137878898,11.69513111,235.66,235.6,23.776884]
[1738137881106,10.42213111,235.64,235.58,23.776884]
[1738137881596,10.42213111,235.65,235.58,23.776884]
[1738137881993,1.273,235.66,235.58,34.19901511]
[1738137881994,10.42213111,235.66,235.58,34.19901511]
[1738137882693,1.273,235.65,235.58,34.19901511]
[1738137882899,1.273,235.65,235.6,23.776884]
[1738137884300,11.69513111,235.65,235.58,10.42213111]
[1738137884509,1.273,235.65,235.59,10.42213111]
[1738137884700,10.42213111,235.69,235.63,23.776884]
[1738137885207,10.42213111,235.67,235.6,10.42213111]
[1738137885405,10.42213111,235.66,235.59,10.42213111]
[1738137885712,10.42213111,235.66,235.6,23.776884]
[1738137886221,10.42213111,235.65,235.57,18.23293111]
[1738137886415,10.42213111,235.62,235.55,10.42213111]
[1738137886615,10.42213111,235.63,235.55,10.42213111]
[1738137886817,11.69533111,235.62,235.55,10.42213111]
[1738137887119,1.273,235.65,235.6,23.776884]
[1738137887710,10.42213111,235.67,235.6,23.776884]
[1738137887922,1.2729,235.67,235.6,10.42213111]
[1738137889493,10.42213111,235.7,235.62,40.42213111]
[1738137889704,10.42213111,235.72,235.65,23.776884]
[1738137890017,10.42213111,235.72,235.66,0.12549]
[1738137890219,10.42213111,235.72,235.65,23.776884]
[1738137890703,1.2727,235.71,235.65,23.776884]
[1738137891215,10.42213111,235.7,235.65,23.776884]
[1738137892726,11.69493111,235.7,235.65,23.776884]
[1738137893118,10.42213111,235.7,235.63,23.902374]
[1738137893504,11.69493111,235.7,235.63,23.902374]
[1738137895716,10.42213111,235.69,235.61,10.42213111]
[1738137895904,10.42213111,235.62,235.52,30.0]
[1738137896110,10.42213111,235.58,235.51,8.2851]
[1738137896319,10.42213111,235.58,235.51,18.70723111]
[1738137896623,10.42213111,235.6,235.52,46.01943611]
[1738137896919,10.42213111,235.6,235.52,10.54762111]
[1738137897125,10.42213111,235.6,235.53,10.42213111]
[1738137897508,11.69543111,235.6,235.53,10.42213111]
[1738137897910,11.69543111,235.6,235.52,34.32450511]
[1738137898123,10.42213111,235.59,235.52,23.902374]
[1738137898324,10.42213111,235.59,235.52,0.12549]
[1738137899012,10.42213111,235.59,235.52,23.902374]
[1738137899630,11.69543111,235.6,235.52,34.32450511]
[1738137900327,10.42213111,235.61,235.54,23.776884]
[1738137900531,10.42213111,235.65,235.57,0.12549]
[1738137900834,10.42213111,235.67,235.6,10.42213111]
[1738137901708,11.69503111,235.67,235.6,10.42213111]
[1738137902028,11.69503111,235.67,235.6,23.776884]
[1738137902412,10.42213111,235.64,235.59,23.776884]
[1738137902634,10.42213111,235.64,235.56,10.42213111]
[1738137902816,10.42213111,235.62,235.56,23.902374]
[1738137904026,11.69533111,235.62,235.56,23.776884]
[1738137904233,11.69533111,235.62,235.53,10.42213111]
[1738137904234,10.42213111,235.59,235.53,10.42213111]
[1738137904431,10.42213111,235.59,235.51,12.04733111]
[1738137904627,10.42213111,235.56,235.48,10.42213111]
[1738137904830,10.42213111,235.55,235.48,23.902374]
[1738137905030,10.42213111,235.56,235.5,23.776884]
[1738137905224,10.42213111,235.61,235.54,10.42213111]
[1738137905543,11.69523111,235.64,235.57,23.776884]
[1738137905954,10.42213111,235.62,235.55,10.42213111]
[1738137906116,10.42213111,235.62,235.56,23.776884]
[1738137906643,10.42213111,235.68,235.59,10.54762111]
[1738137906826,10.42213111,235.7,235.62,23.776884]
[1738137907522,10.42213111,235.68,235.61,10.42213111]
[1738137907711,10.42213111,235.68,235.57,31.6248]
[1738137907712,11.69503111,235.68,235.59,10.42213111]
[1738137907937,2.5598,235.74,235.61,10.42213111]
[1738137907938,10.42213111,235.7,235.61,10.42213111]
[1738137908144,10.42213111,235.72,235.63,40.42213111]
[1738137908443,10.42213111,235.72,235.64,23.776884]
[1738137908741,16.60505204,235.73,235.64,40.38193604]
[1738137909050,16.60505204,235.75,235.67,23.776884]
[1738137911251,16.60505204,235.79,235.7,46.60505204]
[1738137911539,16.10505204,235.79,235.71,23.776884]
[1738137912210,16.10505204,235.79,235.73,23.776884]
[1738137912410,16.60505204,235.81,235.73,23.776884]
[1738137913839,1.2722,235.8,235.73,23.776884]
[1738137914023,17.87715204,235.82,235.75,23.776884]
[1738137914223,1.2721,235.82,235.77,23.776884]
[1738137915918,6.359,235.89,235.77,23.776884]
[1738137915919,16.60505204,235.84,235.77,23.776884]
[1738137916332,16.60505204,235.84,235.74,4.36739]
[1738137916333,16.60505204,235.86,235.79,23.776884]
[1738137916735,16.60505204,235.86,235.79,16.60505204]
[1738137916936,16.60505204,235.89,235.81,23.776884]
[1738137917134,16.60505204,235.87,235.81,23.776884]
[1738137917334,3.1793,235.9,235.77,23.776884]
[1738137917536,0.03,235.8,235.78,16.60505204]
[1738137917937,0.03,235.8,235.79,16.60505204]
[1738137918257,0.03,235.8,235.79,48.11605204]
[1738137919132,0.03,235.8,235.79,72.01842604]
[1738137922866,1.2716,235.92,235.84,0.12549]
[1738137923030,1.4712,236.0,235.92,23.776884]
[1738137923229,0.2,236.0,235.93,16.60505204]
[1738137923458,0.2,236.0,235.95,16.60505204]
[1738137923620,18.07625204,236.0,235.93,16.60505204]
[1738137923958,17.87625204,235.99,235.9,40.63291604]
[1738137924126,16.60505204,235.99,235.9,40.63291604]
[1738137924326,16.60505204,235.97,235.9,23.776884]
[1738137924547,16.60505204,235.96,235.9,23.776884]
[1738137925035,16.60505204,235.96,235.87,16.60505204]
[1738137925235,16.60505204,235.96,235.88,23.776884]
[1738137925461,16.60505204,235.96,235.9,23.776884]
[1738137926460,1.2714,235.96,235.89,16.60505204]
[1738137927060,17.87645204,235.96,235.89,16.60505204]
[1738137927244,17.87645204,235.96,235.87,20.84455204]
[1738137927426,17.87645204,235.96,235.89,16.60505204]
[1738137927738,16.60505204,235.94,235.85,16.60505204]
[1738137927941,1.2714,235.96,235.85,16.60505204]
[1738137927942,16.60505204,235.92,235.85,16.60505204]
[1738137928684,16.60505204,235.9,235.83,16.60505204]
[1738137928857,16.60505204,235.9,235.81,20.84555204]
[1738137929724,16.60505204,235.9,235.81,16.60505204]
[1738137929963,17.87675204,235.9,235.81,16.60505204]
[1738137930131,16.60505204,235.9,235.82,23.776884]
[1738137930326,16.60505204,235.92,235.85,16.60505204]
[1738137930533,18.25885204,235.94,235.87,16.60505204]
[1738137930756,1.6538,235.94,235.87,16.60505204]
[1738137931134,18.25885204,235.94,235.87,16.60505204]
[1738137931332,19.53035204,235.94,235.87,16.60505204]
[1738137932449,18.25885204,235.94,235.87,16.60505204]
[1738137932655,17.90645204,235.96,235.87,16.60505204]
[1738137932971,17.90645204,235.96,235.88,23.776884]
[1738137933178,0.03,235.96,235.89,16.60505204]
[1738137934078,0.03,235.96,235.9,23.776884]
[1738137934273,0.03,235.96,235.92,23.776884]
[1738137934967,0.03,235.96,235.89,40.38193604]
[1738137935971,16.60505204,235.94,235.85,16.60505204]
[1738137936268,16.60505204,235.94,235.87,16.60505204]
[1738137936457,16.63505204,235.96,235.89,16.60505204]
[1738137936656,0.03,235.96,235.91,23.776884]
[1738137937778,16.60505204,235.95,235.86,20.84465204]
[1738137937968,16.60505204,235.95,235.86,16.60505204]
[1738137938280,16.60505204,235.95,235.87,23.776884]
[1738137939065,16.60505204,235.95,235.89,23.776884]
[1738137940478,17.87645204,235.95,235.89,23.776884]
[1738137940654,11.62957644,235.95,235.89,23.776884]
[1738137941763,11.62957644,235.95,235.85,10.35817644]
[1738137941764,10.35817644,235.93,235.85,10.35817644]
[1738137943364,10.35817644,235.91,235.83,34.13506044]
[1738137943587,10.35817644,235.84,235.79,0.063]
[1738137943753,10.35817644,235.82,235.79,0.063]
[1738137943961,10.35817644,235.8,235.79,0.063]
[1738137944674,16.59397709,235.8,235.79,0.063]
[1738137946090,16.59397709,235.82,235.79,0.063]
[1738137946387,16.59397709,235.86,235.79,0.063]
[1738137946586,16.59397709,235.88,235.8,16.59397709]
[1738137946777,16.59397709,235.88,235.81,23.776884]
[1738137947092,16.59397709,235.88,235.82,16.59397709]
[1738137947392,16.59397709,235.88,235.82,20.83437709]
[1738137947902,16.59397709,235.9,235.82,20.83437709]
[1738137949089,16.59397709,235.9,235.83,23.776884]
[1738137950109,16.59397709,235.9,235.83,28.017084]
[1738137950397,16.59397709,235.92,235.84,16.59397709]
[1738137950994,16.59397709,235.91,235.83,44.61106109]
[1738137951227,16.59397709,235.9,235.83,28.017084]
[1738137951992,16.59397709,235.87,235.81,4.2406]
[1738137952368,16.59397709,235.86,235.79,4.3039]
[1738137952581,16.59397709,235.84,235.79,0.063]
[1738137952976,16.59397709,235.8,235.79,0.063]
[1738137953372,16.59397709,235.81,235.79,0.063]
[1738137954700,16.59397709,235.82,235.79,0.063]
[1738137955981,16.59397709,235.83,235.79,0.063]
[1738137957899,1.2721,235.82,235.79,0.063]
[1738137958588,16.59397709,235.81,235.79,0.063]
[1738137959399,17.86607709,235.82,235.79,0.063]
[1738137959701,1.2721,235.82,235.79,0.063]